[Event "Championnat d'Europe de Blitz"]
[Date "2024.12.09"]
[White "Zajic, Milan"]
[Black "Quparadze, Giga"]
[WhiteElo "2392"]
[BlackElo "2537"]
[Round "10.9"]
[Result "1/2-1/2"]
[TimeControl "180+2"]

1. e4 {[%clk 00:03:03]} c5 {[%emt 00:00:02] [%clk 00:03:03]} 2. Nf3 {[%emt
00:00:01] [%clk 00:03:04]} e6 {[%clk 00:03:04]} 3. d4 {[%emt 00:00:02] [%clk
00:03:04]} cxd4 {[%emt 00:00:01] [%clk 00:03:05]} 4. Nxd4 {[%emt 00:00:02] [%clk
00:03:05]} a6 {[%clk 00:03:07]} 5. Bd3 {[%emt 00:00:02] [%clk 00:03:05]} d5
{[%emt 00:00:01] [%clk 00:03:08]} 6. exd5 {[%emt 00:00:09] [%clk 00:02:58]} Qxd5
{[%clk 00:03:09]} 7. O-O {[%emt 00:00:03] [%clk 00:02:57]} Nd7 {[%emt 00:00:01]
[%clk 00:03:09]} 8. Be3 {[%emt 00:00:06] [%clk 00:02:54]} Bc5 {[%emt 00:00:02]
[%clk 00:03:09]} 9. Nc3 {[%emt 00:00:19] [%clk 00:02:37]} Qe5 {[%emt 00:00:03]
[%clk 00:03:08]} 10. Nf3 {[%emt 00:00:25] [%clk 00:02:14]} Qc7 {[%emt 00:00:03]
[%clk 00:03:06]} 11. Qd2 {[%emt 00:00:02] [%clk 00:02:14]} Bxe3 {[%emt 00:00:03]
[%clk 00:03:06]} 12. Qxe3 {[%emt 00:00:02] [%clk 00:02:15]} Ngf6 {[%emt
00:00:01] [%clk 00:03:06]} 13. Rad1 {[%emt 00:00:06] [%clk 00:02:11]} O-O {[%emt
00:00:03] [%clk 00:03:05]} 14. Ne4 {[%emt 00:00:03] [%clk 00:02:10]} Nxe4 {[%emt
00:00:12] [%clk 00:02:55]} 15. Qxe4 {[%emt 00:00:02] [%clk 00:02:10]} Nf6 {[%clk
00:02:55]} 16. Qh4 {[%emt 00:00:10] [%clk 00:02:02]} h6 {[%emt 00:00:02] [%clk
00:02:56]} 17. Rfe1 {[%emt 00:00:01] [%clk 00:02:03]} b6 {[%emt 00:00:08] [%clk
00:02:51]} 18. Ne5 {[%emt 00:00:06] [%clk 00:01:58]} Bb7 {[%emt 00:00:02] [%clk
00:02:50]} 19. Qg3 {[%emt 00:00:03] [%clk 00:01:58]} Rac8 {[%emt 00:00:06] [%clk
00:02:46]} 20. h3 {[%emt 00:00:08] [%clk 00:01:52]} Rfd8 {[%emt 00:00:03] [%clk
00:02:45]} 21. a3 {[%emt 00:00:05] [%clk 00:01:49]} b5 {[%emt 00:00:03] [%clk
00:02:44]} 22. Qh4 {[%emt 00:00:16] [%clk 00:01:35]} Rd5 {[%emt 00:00:03] [%clk
00:02:42]} 23. Qg3 {[%emt 00:00:20] [%clk 00:01:18]} Rcd8 {[%emt 00:00:12] [%clk
00:02:32]} 24. Re3 {[%emt 00:00:07] [%clk 00:01:13]} Nh5 {[%emt 00:00:04] [%clk
00:02:30]} 25. Qh4 {[%emt 00:00:15] [%clk 00:01:00]} Nf6 {[%emt 00:00:01] [%clk
00:02:30]} 26. Qg3 {[%emt 00:00:01] [%clk 00:01:02]} Rd4 {[%emt 00:00:05] [%clk
00:02:27]} 27. Ng4 {[%emt 00:00:11] [%clk 00:00:52]} Qxg3 {[%emt 00:00:13] [%clk
00:02:16]} 28. Nxf6+ {[%emt 00:00:02] [%clk 00:00:53]} gxf6 {[%emt 00:00:01]
[%clk 00:02:17]} 29. Rxg3+ {[%emt 00:00:02] [%clk 00:00:53]} Kf8 {[%clk
00:02:18]} 30. Re1 {[%emt 00:00:04] [%clk 00:00:51]} f5 {[%emt 00:00:03] [%clk
00:02:17]} 31. Rge3 {[%emt 00:00:04] [%clk 00:00:48]} Kg7 {[%emt 00:00:07] [%clk
00:02:13]} 32. f3 {[%emt 00:00:02] [%clk 00:00:48]} Kf6 {[%emt 00:00:01] [%clk
00:02:13]} 33. Kf2 {[%emt 00:00:02] [%clk 00:00:48]} h5 {[%emt 00:00:02] [%clk
00:02:13]} 34. R3e2 {[%emt 00:00:11] [%clk 00:00:40]} h4 {[%emt 00:00:01] [%clk
00:02:13]} 35. Re3 {[%emt 00:00:01] [%clk 00:00:41]} Rg8 {[%emt 00:00:02] [%clk
00:02:14]} 36. Ra1 {[%emt 00:00:06] [%clk 00:00:37]} Bd5 {[%emt 00:00:05] [%clk
00:02:10]} 37. c3 {[%emt 00:00:10] [%clk 00:00:30]} f4 {[%emt 00:00:06] [%clk
00:02:06]} 38. Rxe6+ {[%emt 00:00:06] [%clk 00:00:26]} Bxe6 {[%emt 00:00:06]
[%clk 00:02:02]} 39. cxd4 {[%emt 00:00:01] [%clk 00:00:27]} Rd8 {[%clk
00:02:03]} 40. Ke2 {[%emt 00:00:22] [%clk 00:00:07]} Rxd4 {[%emt 00:00:04] [%clk
00:02:01]} 41. Rc1 {[%clk 00:00:08]} Rd5 {[%emt 00:00:12] [%clk 00:01:51]} 42.
Rc6 {[%emt 00:00:02] [%clk 00:00:09]} Re5+ {[%emt 00:00:03] [%clk 00:01:50]} 43.
Kf2 {[%emt 00:00:06] [%clk 00:00:05]} Rd5 {[%emt 00:00:08] [%clk 00:01:44]} 44.
Ke2 {[%emt 00:00:02] [%clk 00:00:05]} a5 {[%emt 00:00:02] [%clk 00:01:44]} 45.
Rb6 {[%emt 00:00:01] [%clk 00:00:07]} Re5+ {[%emt 00:00:04] [%clk 00:01:41]} 46.
Kf2 {[%emt 00:00:03] [%clk 00:00:06]} Rd5 {[%emt 00:00:01] [%clk 00:01:42]} 47.
Ke2 {[%clk 00:00:07]} Rg5 {[%emt 00:00:08] [%clk 00:01:35]} 48. Kf2 {[%emt
00:00:02] [%clk 00:00:07]} Rd5 {[%emt 00:00:06] [%clk 00:01:32]} 49. Ke2 {[%emt
00:00:01] [%clk 00:00:08]} 1/2-1/2

[Site "Europe Echecs"]

[Event "Championnat d'Europe de Blitz"]
[Date "2024.12.09"]
[White "Kilic, Eray"]
[Black "Livaic, Leon"]
[WhiteElo "2459"]
[BlackElo "2560"]
[Round "10.10"]
[Result "0-1"]
[TimeControl "180+2"]

1. e4 {[%clk 00:03:02]} d6 {[%emt 00:00:02] [%clk 00:03:03]} 2. d4 {[%emt
00:00:01] [%clk 00:03:03]} Nf6 {[%clk 00:03:04]} 3. Nc3 {[%emt 00:00:01] [%clk
00:03:04]} e5 {[%clk 00:03:06]} 4. Nf3 {[%emt 00:00:02] [%clk 00:03:04]} Nbd7
{[%emt 00:00:01] [%clk 00:03:07]} 5. Rg1 {[%emt 00:00:02] [%clk 00:03:04]} c6
{[%emt 00:00:02] [%clk 00:03:07]} 6. g4 {[%clk 00:03:04]} h6 {[%emt 00:00:01]
[%clk 00:03:08]} 7. Be3 {[%emt 00:00:02] [%clk 00:03:05]} Be7 {[%emt 00:00:01]
[%clk 00:03:09]} 8. Qd2 {[%emt 00:00:05] [%clk 00:03:02]} b5 {[%emt 00:00:02]
[%clk 00:03:09]} 9. a3 {[%emt 00:00:01] [%clk 00:03:03]} Qa5 {[%emt 00:00:03]
[%clk 00:03:09]} 10. Bd3 {[%emt 00:00:20] [%clk 00:02:44]} Rb8 {[%emt 00:00:02]
[%clk 00:03:09]} 11. h4 {[%emt 00:00:12] [%clk 00:02:33]} b4 {[%emt 00:00:39]
[%clk 00:02:33]} 12. Ne2 {[%clk 00:02:34]} c5 {[%emt 00:00:14] [%clk 00:02:21]}
13. dxe5 {[%emt 00:00:28] [%clk 00:02:08]} Nxe5 {[%emt 00:00:06] [%clk
00:02:17]} 14. Nxe5 {[%emt 00:00:02] [%clk 00:02:07]} dxe5 {[%emt 00:00:01]
[%clk 00:02:18]} 15. f3 {[%emt 00:00:16] [%clk 00:01:54]} Be6 {[%emt 00:00:01]
[%clk 00:02:19]} 16. g5 {[%emt 00:00:20] [%clk 00:01:36]} hxg5 {[%emt 00:00:02]
[%clk 00:02:18]} 17. hxg5 {[%clk 00:01:37]} Nd7 {[%emt 00:00:07] [%clk
00:02:14]} 18. Ng3 {[%emt 00:00:11] [%clk 00:01:28]} c4 {[%emt 00:00:11] [%clk
00:02:05]} 19. Bf1 {[%emt 00:00:14] [%clk 00:01:16]} c3 {[%emt 00:00:14] [%clk
00:01:53]} 20. bxc3 {[%emt 00:00:01] [%clk 00:01:17]} bxa3 {[%emt 00:00:04]
[%clk 00:01:51]} 21. Kf2 {[%emt 00:00:05] [%clk 00:01:14]} g6 {[%emt 00:00:14]
[%clk 00:01:39]} 22. Bd3 {[%emt 00:00:15] [%clk 00:01:00]} Rh2+ {[%emt 00:00:43]
[%clk 00:00:59]} 23. Rg2 {[%emt 00:00:02] [%clk 00:01:01]} Rxg2+ {[%clk
00:01:00]} 24. Kxg2 {[%clk 00:01:02]} a2 {[%emt 00:00:02] [%clk 00:01:00]} 25.
c4 {[%emt 00:00:41] [%clk 00:00:22]} Qa3 {[%clk 00:01:01]} 26. Qc1 {[%emt
00:00:17] [%clk 00:00:07]} Qxc1 {[%emt 00:00:12] [%clk 00:00:51]} 27. Bxc1
{[%emt 00:00:02] [%clk 00:00:08]} Rb1 {[%clk 00:00:52]} 28. Rxa2 {[%clk
00:00:09]} Rxc1 {[%emt 00:00:01] [%clk 00:00:53]} 29. Ne2 {[%emt 00:00:02]} Rb1
{[%emt 00:00:10] [%clk 00:00:43]} 30. Rxa7 {[%clk 00:00:11]} Bxg5 {[%emt
00:00:06] [%clk 00:00:40]} 31. Nc3 {[%clk 00:00:12]} Rb8 {[%emt 00:00:10] [%clk
00:00:32]} 32. Nb5 {[%emt 00:00:06] [%clk 00:00:08]} Be3 {[%emt 00:00:03] [%clk
00:00:30]} 33. Ra6 {[%emt 00:00:05] [%clk 00:00:06]} Nc5 {[%emt 00:00:05] [%clk
00:00:28]} 34. Ra5 {[%clk 00:00:07]} Rd8 {[%emt 00:00:09] [%clk 00:00:20]} 35.
Nc7+ {[%emt 00:00:05] [%clk 00:00:04]} Ke7 {[%emt 00:00:04] [%clk 00:00:19]} 36.
Kf1 {[%emt 00:00:02] [%clk 00:00:03]} Nxd3 {[%emt 00:00:06] [%clk 00:00:15]} 37.
cxd3 {[%emt 00:00:01] [%clk 00:00:04]} Bb6 {[%emt 00:00:08] [%clk 00:00:09]} 38.
Nxe6 {[%emt 00:00:03] [%clk 00:00:03]} Bxa5 {[%emt 00:00:01] [%clk 00:00:10]}
39. Nxd8 {[%emt 00:00:03]} Bxd8 {[%emt 00:00:01] [%clk 00:00:10]} 40. Kg2 {[%emt
00:00:01] [%clk 00:00:03]} Bb6 {[%emt 00:00:03] [%clk 00:00:10]} 41. Kg3 {[%emt
00:00:01] [%clk 00:00:05]} Kf6 {[%emt 00:00:01] [%clk 00:00:10]} 42. f4 {[%emt
00:00:01] [%clk 00:00:06]} Bd4 {[%emt 00:00:05] [%clk 00:00:08]} 43. Kf3 {[%emt
00:00:02] [%clk 00:00:06]} exf4 {[%emt 00:00:05] [%clk 00:00:05]} 44. Kxf4
{[%clk 00:00:07]} g5+ {[%emt 00:00:01] [%clk 00:00:06]} 45. Kf3 {[%emt 00:00:01]
[%clk 00:00:08]} Ke5 {[%emt 00:00:02] [%clk 00:00:07]} 46. Kg4 {[%clk 00:00:09]}
f6 {[%clk 00:00:08]} 47. Kf3 {[%emt 00:00:02] [%clk 00:00:09]} Bc5 {[%emt
00:00:01] [%clk 00:00:09]} 48. Kg4 {[%clk 00:00:10]} Bd6 {[%emt 00:00:02] [%clk
00:00:10]} 49. Kh5 {[%emt 00:00:07] [%clk 00:00:05]} Kd4 {[%emt 00:00:05] [%clk
00:00:08]} 50. Kg4 {[%emt 00:00:03] [%clk 00:00:04]} Kxd3 {[%emt 00:00:02] [%clk
00:00:07]} 51. c5 {[%emt 00:00:03] [%clk 00:00:03]} Bxc5 {[%emt 00:00:03] [%clk
00:00:07]} 52. Kf5 {[%emt 00:00:01] [%clk 00:00:03]} Bd4 {[%clk 00:00:08]} 0-1

[Site "Europe Echecs"]

[Event "Championnat d'Europe de Blitz"]
[Date "2024.12.09"]
[White "Pultinevicius, Paulius"]
[Black "Horvath, Dominik"]
[WhiteElo "2579"]
[BlackElo "2542"]
[Round "10.11"]
[Result "0-1"]
[TimeControl "180+2"]

1. c4 {[%emt 00:18:03] [%clk 00:03:02]} g6 {[%clk 00:03:03]} 2. Nc3 {[%emt
00:00:02] [%clk 00:03:02]} c5 {[%emt 00:00:05] [%clk 00:03:00]} 3. e3 {[%emt
00:00:02] [%clk 00:03:03]} Nf6 {[%emt 00:00:03] [%clk 00:02:58]} 4. b3 {[%emt
00:00:03] [%clk 00:03:03]} Bg7 {[%emt 00:00:02] [%clk 00:02:58]} 5. Bb2 {[%clk
00:03:04]} O-O {[%clk 00:02:59]} 6. Rc1 {[%emt 00:00:02] [%clk 00:03:05]} b6
{[%emt 00:00:01] [%clk 00:03:00]} 7. Be2 {[%emt 00:00:02] [%clk 00:03:04]} Bb7
{[%emt 00:00:02] [%clk 00:03:01]} 8. Bf3 {[%clk 00:03:05]} Nc6 {[%emt 00:00:04]
[%clk 00:03:00]} 9. Nge2 {[%emt 00:00:02] [%clk 00:03:05]} Qb8 {[%emt 00:00:01]
[%clk 00:03:01]} 10. d4 {[%emt 00:00:03] [%clk 00:03:04]} d6 {[%emt 00:00:06]
[%clk 00:02:57]} 11. h4 {[%emt 00:00:08] [%clk 00:02:58]} h5 {[%emt 00:00:07]
[%clk 00:02:51]} 12. Ng3 {[%emt 00:00:15] [%clk 00:02:45]} cxd4 {[%emt 00:00:09]
[%clk 00:02:44]} 13. exd4 {[%emt 00:00:02] [%clk 00:02:45]} e5 {[%clk 00:02:45]}
14. dxe5 {[%emt 00:00:11] [%clk 00:02:37]} dxe5 {[%emt 00:00:02] [%clk
00:02:44]} 15. Nd5 {[%emt 00:00:08] [%clk 00:02:32]} Nxd5 {[%emt 00:00:04] [%clk
00:02:41]} 16. Bxd5 {[%emt 00:00:02] [%clk 00:02:32]} Nd4 {[%emt 00:00:02] [%clk
00:02:41]} 17. Bxb7 {[%emt 00:00:38] [%clk 00:01:56]} Qxb7 {[%emt 00:00:04]
[%clk 00:02:39]} 18. Bxd4 {[%emt 00:00:11] [%clk 00:01:48]} Rad8 {[%emt
00:00:10] [%clk 00:02:31]} 19. Qf3 {[%emt 00:00:16] [%clk 00:01:33]} Qxf3 {[%emt
00:00:03] [%clk 00:02:31]} 20. gxf3 {[%emt 00:00:01] [%clk 00:01:34]} exd4
{[%emt 00:00:04] [%clk 00:02:28]} 21. Rd1 {[%emt 00:00:19] [%clk 00:01:17]} d3
{[%emt 00:00:18] [%clk 00:02:13]} 22. Kd2 {[%emt 00:00:01] [%clk 00:01:18]} Bh6+
{[%emt 00:00:12] [%clk 00:02:03]} 23. Kc3 {[%emt 00:00:01] [%clk 00:01:19]} Bg7+
{[%emt 00:00:04] [%clk 00:02:01]} 24. Kd2 {[%emt 00:00:01] [%clk 00:01:20]} Rfe8
{[%emt 00:00:03] [%clk 00:01:59]} 25. Rhe1 {[%emt 00:00:08] [%clk 00:01:15]}
Bh6+ {[%emt 00:00:02] [%clk 00:01:59]} 26. Kc3 {[%emt 00:00:01] [%clk 00:01:15]}
Bg7+ {[%emt 00:00:12] [%clk 00:01:49]} 27. Kd2 {[%emt 00:00:01] [%clk 00:01:17]}
Rxe1 {[%emt 00:00:42] [%clk 00:01:08]} 28. Rxe1 {[%emt 00:00:01] [%clk
00:01:18]} Rd4 {[%emt 00:00:02]} 29. Re8+ {[%emt 00:00:46] [%clk 00:00:32]} Bf8
{[%emt 00:00:05] [%clk 00:01:07]} 30. Ne4 {[%emt 00:00:27] [%clk 00:00:08]} Kg7
{[%clk 00:01:09]} 31. Kc3 {[%emt 00:00:07] [%clk 00:00:03]} d2 {[%emt 00:00:08]
[%clk 00:01:03]} 32. Nxd2 {[%emt 00:00:01] [%clk 00:00:04]} Rxh4 {[%emt
00:00:01] [%clk 00:01:04]} 33. Ne4 {[%clk 00:00:05]} Rf4 {[%emt 00:00:01] [%clk
00:01:05]} 34. Nd2 {[%emt 00:00:02] [%clk 00:00:05]} h4 {[%clk 00:01:06]} 35.
Re1 {[%emt 00:00:03] [%clk 00:00:05]} h3 {[%emt 00:00:02] [%clk 00:01:06]} 36.
Rh1 {[%emt 00:00:01] [%clk 00:00:07]} Rh4 {[%clk 00:01:07]} 37. Kd3 {[%emt
00:00:05] [%clk 00:00:04]} f5 {[%emt 00:00:05] [%clk 00:01:03]} 38. Nf1 {[%emt
00:00:04] [%clk 00:00:04]} Bc5 {[%emt 00:00:02] [%clk 00:01:02]} 39. Ke2 {[%emt
00:00:02] [%clk 00:00:04]} Kf6 {[%emt 00:00:02] [%clk 00:01:01]} 40. Nd2 {[%emt
00:00:04] [%clk 00:00:03]} Bd6 {[%emt 00:00:02] [%clk 00:01:01]} 41. a4 {[%emt
00:00:02] [%clk 00:00:03]} h2 {[%emt 00:00:04] [%clk 00:00:58]} 42. Nf1 {[%emt
00:00:03] [%clk 00:00:03]} Rh8 {[%emt 00:00:02] [%clk 00:00:57]} 43. b4 {[%emt
00:00:02] [%clk 00:00:04]} Rc8 {[%emt 00:00:16] [%clk 00:00:44]} 44. f4 {[%emt
00:00:02] [%clk 00:00:03]} Rxc4 {[%emt 00:00:02] [%clk 00:00:43]} 45. Rxh2
{[%emt 00:00:01] [%clk 00:00:04]} Rxf4 {[%emt 00:00:03] [%clk 00:00:42]} 46. Rh7
{[%emt 00:00:02] [%clk 00:00:05]} Bxb4 {[%emt 00:00:03] [%clk 00:00:40]} 47.
Rxa7 {[%emt 00:00:01] [%clk 00:00:06]} Bc5 {[%clk 00:00:42]} 48. f3 {[%emt
00:00:02] [%clk 00:00:06]} Rb4 {[%emt 00:00:02] [%clk 00:00:42]} 49. Nd2 {[%emt
00:00:01] [%clk 00:00:07]} Rb2 {[%emt 00:00:05] [%clk 00:00:39]} 50. Kd3 {[%emt
00:00:01] [%clk 00:00:08]} Ra2 {[%clk 00:00:40]} 51. Nc4 {[%emt 00:00:01] [%clk
00:00:08]} Kg5 {[%emt 00:00:05] [%clk 00:00:37]} 52. Ne5 {[%emt 00:00:04] [%clk
00:00:06]} Kf4 {[%emt 00:00:11] [%clk 00:00:29]} 53. Nxg6+ {[%emt 00:00:01]
[%clk 00:00:07]} Kxf3 {[%clk 00:00:30]} 54. Rf7 {[%emt 00:00:02] [%clk
00:00:07]} Ra3+ {[%emt 00:00:03] [%clk 00:00:30]} 55. Kc2 {[%emt 00:00:02] [%clk
00:00:07]} Ke4 {[%clk 00:00:31]} 56. Rf6 {[%emt 00:00:06] [%clk 00:00:03]} Rxa4
{[%emt 00:00:06] [%clk 00:00:27]} 57. Re6+ {[%clk 00:00:04]} Kf3 {[%clk
00:00:28]} 58. Ne5+ {[%emt 00:00:03]} Kg3 {[%clk 00:00:28]} 59. Rg6+ {[%emt
00:00:01] [%clk 00:00:05]} Kf4 {[%emt 00:00:02] [%clk 00:00:28]} 60. Nd3+ {[%emt
00:00:02] [%clk 00:00:06]} Ke4 {[%clk 00:00:28]} 61. Re6+ {[%emt 00:00:02] [%clk
00:00:07]} Kd4 {[%emt 00:00:01] [%clk 00:00:29]} 62. Nf4 {[%emt 00:00:02] [%clk
00:00:08]} Ra2+ {[%emt 00:00:03] [%clk 00:00:29]} 63. Kd1 {[%emt 00:00:01] [%clk
00:00:08]} Rf2 {[%emt 00:00:01] [%clk 00:00:29]} 64. Ne2+ {[%emt 00:00:04] [%clk
00:00:07]} Kd5 {[%emt 00:00:02] [%clk 00:00:29]} 65. Rf6 {[%emt 00:00:02] [%clk
00:00:06]} b5 {[%emt 00:00:05] [%clk 00:00:27]} 66. Ke1 {[%clk 00:00:08]} Rf3
{[%emt 00:00:03] [%clk 00:00:26]} 67. Kd2 {[%clk 00:00:10]} b4 {[%emt 00:00:01]
[%clk 00:00:27]} 68. Rf7 {[%emt 00:00:05] [%clk 00:00:07]} b3 {[%emt 00:00:02]
[%clk 00:00:27]} 69. Rb7 {[%emt 00:00:02] [%clk 00:00:07]} Kc4 {[%emt 00:00:03]
[%clk 00:00:26]} 70. Kd1 {[%emt 00:00:05] [%clk 00:00:04]} f4 {[%emt 00:00:05]
[%clk 00:00:23]} 71. Rf7 {[%emt 00:00:02] [%clk 00:00:04]} Rf1+ {[%emt 00:00:03]
[%clk 00:00:22]} 0-1

[Site "Europe Echecs"]